[Event "*** SCC Grand Prix: Titled Tuesday Blitz"]
[Site "Chess.com"]
[Date "2020.07.21"]
[Round "9"]
[White "Carnivoras"]
[Black "Antipov_Mikhail_Al"]
[Result "1-0"]
[WhiteElo "2658"]
[BlackElo "2845"]
[TimeControl "180+1"]
[EndTime "11:51:30 PDT"]
[Termination "Carnivoras won by resignation"]

1. d4 {[%clk 0:03:00.9]} 1... Nf6 {[%clk 0:02:59.9]} 2. c4 {[%clk 0:03:00.8]}
2... g6 {[%clk 0:02:59.9]} 3. Nc3 {[%clk 0:03:00.7]} 3... d5 {[%clk 0:03:00]} 4.
Bg5 {[%clk 0:02:59.8]} 4... Bg7 {[%clk 0:02:59.6]} 5. Bxf6 {[%clk 0:03:00.2]}
5... Bxf6 {[%clk 0:03:00.5]} 6. cxd5 {[%clk 0:03:00.9]} 6... c5 {[%clk
0:02:59.9]} 7. dxc5 {[%clk 0:02:59.8]} 7... Nd7 {[%clk 0:02:59.8]} 8. Nf3 {[%clk
0:02:57.4]} 8... Nxc5 {[%clk 0:02:51]} 9. e3 {[%clk 0:02:57.6]} 9... Qa5 {[%clk
0:02:31.9]} 10. Nd4 {[%clk 0:02:50.3]} 10... O-O {[%clk 0:02:23.3]} 11. Be2
{[%clk 0:02:48.3]} 11... Bxd4 {[%clk 0:02:12.2]} 12. Qxd4 {[%clk 0:02:44.5]}
12... Nb3 {[%clk 0:02:12.2]} 13. axb3 {[%clk 0:02:27.9]} 13... Qxa1+ {[%clk
0:02:13.1]} 14. Nd1 {[%clk 0:02:28.2]} 14... Qa5+ {[%clk 0:02:08.9]} 15. b4
{[%clk 0:02:28.1]} 15... Qb6 {[%clk 0:02:09]} 16. Qxb6 {[%clk 0:02:23]} 16...
axb6 {[%clk 0:02:08.9]} 17. Kd2 {[%clk 0:02:23.2]} 17... Ra2 {[%clk 0:02:05.4]}
18. Bc4 {[%clk 0:02:17.5]} 18... Ra1 {[%clk 0:02:05.5]} 19. Re1 {[%clk
0:02:16.9]} 19... Bd7 {[%clk 0:01:58.8]} 20. Nc3 {[%clk 0:02:15.6]} 20... Rxe1
{[%clk 0:01:57.9]} 21. Kxe1 {[%clk 0:02:16.5]} 21... Rc8 {[%clk 0:01:58.3]} 22.
Bd3 {[%clk 0:02:13.6]} 22... f5 {[%clk 0:01:56.4]} 23. Kd2 {[%clk 0:02:12.6]}
23... Kf7 {[%clk 0:01:56.5]} 24. e4 {[%clk 0:02:10.7]} 24... fxe4 {[%clk
0:01:54.4]} 25. Nxe4 {[%clk 0:02:10.7]} 25... h6 {[%clk 0:01:53.7]} 26. b3
{[%clk 0:02:08.7]} 26... Bf5 {[%clk 0:01:51]} 27. Nc3 {[%clk 0:02:06.6]} 27...
Kf6 {[%clk 0:01:47.5]} 28. Bc4 {[%clk 0:02:02.7]} 28... Ke5 {[%clk 0:01:46.7]}
29. Ke3 {[%clk 0:02:02.7]} 29... g5 {[%clk 0:01:46.5]} 30. f3 {[%clk 0:02:00.6]}
30... Bd7 {[%clk 0:01:42.5]} 31. b5 {[%clk 0:01:57.3]} 31... Rf8 {[%clk
0:01:36.8]} 32. Ne4 {[%clk 0:01:46.9]} 32... Bf5 {[%clk 0:01:35.3]} 33. Nf2
{[%clk 0:01:41.5]} 33... Ra8 {[%clk 0:01:33.8]} 34. g3 {[%clk 0:01:40.4]} 34...
Ra2 {[%clk 0:01:30.7]} 35. h3 {[%clk 0:01:34.9]} 35... Rb2 {[%clk 0:01:24.5]}
36. Ng4+ {[%clk 0:01:07.2]} 36... Bxg4 {[%clk 0:01:24.2]} 37. hxg4 {[%clk
0:01:06.1]} 37... Rg2 {[%clk 0:01:16.7]} 38. f4+ {[%clk 0:01:05.3]} 38... Kd6
{[%clk 0:01:15.8]} 39. Kf3 {[%clk 0:00:59.4]} 39... Rc2 {[%clk 0:01:15.6]} 40.
Ke4 {[%clk 0:00:58.6]} 40... Rc3 {[%clk 0:01:15.4]} 41. Kf5 {[%clk 0:00:56.8]}
41... Rxg3 {[%clk 0:01:12.4]} 42. fxg5 {[%clk 0:00:56.7]} 42... hxg5 {[%clk
0:01:13.3]} 43. Kxg5 {[%clk 0:00:56.9]} 43... Ke5 {[%clk 0:01:13.9]} 44. Kh5
{[%clk 0:00:40.1]} 44... Kf4 {[%clk 0:01:12.2]} 45. Kg6 {[%clk 0:00:40.1]} 45...
Ke5 {[%clk 0:01:03.5]} 46. Kf7 {[%clk 0:00:40.1]} 46... Kd6 {[%clk 0:01:03.5]}
47. Be2 {[%clk 0:00:37.1]} 47... Kxd5 {[%clk 0:00:54.6]} 48. Kg6 {[%clk
0:00:25.8]} 48... Ke5 {[%clk 0:00:52.1]} 49. Kf7 {[%clk 0:00:23.9]} 49... Kd6
{[%clk 0:00:51.8]} 50. Kg6 {[%clk 0:00:24]} 50... e6 {[%clk 0:00:44.4]} 51. g5
{[%clk 0:00:20.3]} 51... Rxb3 {[%clk 0:00:43.9]} 52. Kf7 {[%clk 0:00:17]} 52...
Rb2 {[%clk 0:00:44.3]} 53. Bd3 {[%clk 0:00:15.2]} 53... Rf2+ {[%clk 0:00:44.5]}
54. Ke8 {[%clk 0:00:15.1]} 54... Rf3 {[%clk 0:00:38.8]} 55. Be4 {[%clk
0:00:13.9]} 55... Rf4 {[%clk 0:00:37.6]} 56. Bd3 {[%clk 0:00:12]} 56... e5
{[%clk 0:00:35.8]} 57. g6 {[%clk 0:00:11.2]} 57... Rg4 {[%clk 0:00:20.1]} 58.
Kf7 {[%clk 0:00:08.6]} 58... e4 {[%clk 0:00:20.1]} 59. Be2 {[%clk 0:00:08.6]}
59... Rf4+ {[%clk 0:00:14.4]} 60. Ke8 {[%clk 0:00:08.8]} 60... Rf2 {[%clk
0:00:11.4]} 61. g7 {[%clk 0:00:09]} 61... Rg2 {[%clk 0:00:11.7]} 62. Kf8 {[%clk
0:00:08]} 62... Rf2+ {[%clk 0:00:11.7]} 63. Ke8 {[%clk 0:00:08.2]} 63... Rg2
{[%clk 0:00:09.5]} 64. Kf8 {[%clk 0:00:08.5]} 64... Rxe2 {[%clk 0:00:04.9]} 65.
g8=Q {[%clk 0:00:08.2]} 65... Rc2 {[%clk 0:00:05.5]} 66. Qb3 {[%clk 0:00:06.3]}
66... Rc5 {[%clk 0:00:03.8]} 67. Qd1+ {[%clk 0:00:05.7]} 67... Ke5 {[%clk
0:00:04.7]} 68. Qh5+ {[%clk 0:00:05.6]} 68... Kd4 {[%clk 0:00:04.7]} 69. Qd1+
{[%clk 0:00:06.2]} 69... Kc4 {[%clk 0:00:04.5]} 70. Qe2+ {[%clk 0:00:05.8]}
70... Kd4 {[%clk 0:00:04]} 71. Ke7 {[%clk 0:00:06.1]} 71... e3 {[%clk
0:00:02.5]} 72. Kd6 {[%clk 0:00:06.3]} 72... Ke4 {[%clk 0:00:02.9]} 73. Qg4+
{[%clk 0:00:05.2]} 73... Kd3 {[%clk 0:00:03.8]} 74. Qd1+ {[%clk 0:00:05.4]}
74... Ke4 {[%clk 0:00:04.1]} 75. Qe2 {[%clk 0:00:06]} 75... Kd4 {[%clk
0:00:03.8]} 76. Qg4+ {[%clk 0:00:06]} 76... Kc3 {[%clk 0:00:03.4]} 77. Qe4
{[%clk 0:00:05]} 77... Kd2 {[%clk 0:00:03.2]} 78. Qd4+ {[%clk 0:00:04.7]} 78...
Ke2 {[%clk 0:00:03.4]} 79. Qg4+ {[%clk 0:00:04.8]} 79... Kd2 {[%clk 0:00:03.5]}
80. Qd4+ {[%clk 0:00:04.8]} 80... Ke2 {[%clk 0:00:04]} 81. Qg4+ {[%clk
0:00:04.9]} 81... Ke1 {[%clk 0:00:04.4]} 82. Qg3+ {[%clk 0:00:05]} 82... Kd2
{[%clk 0:00:04.7]} 83. Qf4 {[%clk 0:00:04.1]} 83... Kd3 {[%clk 0:00:03.3]} 84.
Qf3 {[%clk 0:00:02.5]} 84... Rxb5 {[%clk 0:00:02.9]} 85. Qf1+ {[%clk 0:00:02.2]}
85... e2 {[%clk 0:00:02.8]} 86. Qf3+ {[%clk 0:00:02.8]} 86... Kd2 {[%clk
0:00:02.7]} 87. Qf4+ {[%clk 0:00:03.4]} 87... Kd3 {[%clk 0:00:02.3]} 88. Qf3+
{[%clk 0:00:03.2]} 88... Kd2 {[%clk 0:00:02.7]} 89. Qf4+ {[%clk 0:00:03.6]}
89... Kd1 {[%clk 0:00:02.3]} 90. Qd4+ {[%clk 0:00:03.7]} 90... Ke1 {[%clk
0:00:02.2]} 91. Qg1+ {[%clk 0:00:03.1]} 91... Kd2 {[%clk 0:00:02.7]} 92. Qd4+
{[%clk 0:00:03.4]} 92... Kc2 {[%clk 0:00:03.1]} 93. Qc4+ {[%clk 0:00:03.3]}
93... Kd1 {[%clk 0:00:03.5]} 94. Qd3+ {[%clk 0:00:03.5]} 94... Ke1 {[%clk
0:00:03.5]} 95. Qxb5 {[%clk 0:00:03.5]} 95... Kf2 {[%clk 0:00:03.7]} 96. Qf5+
{[%clk 0:00:03.7]} 96... Ke3 {[%clk 0:00:03.5]} 97. Qe5+ {[%clk 0:00:03.8]}
97... Kf3 {[%clk 0:00:02.6]} 98. Qf5+ {[%clk 0:00:03.9]} 98... Ke3 {[%clk
0:00:02.5]} 99. Qb1 {[%clk 0:00:04.3]} 99... Kd2 {[%clk 0:00:02]} 100. Qb2+
{[%clk 0:00:04.4]} 100... Kd3 {[%clk 0:00:02.1]} 101. Qc1 {[%clk 0:00:03.7]}
101... b5 {[%clk 0:00:03]} 102. Qe1 {[%clk 0:00:03.8]} 102... b4 {[%clk
0:00:02.1]} 103. Qxb4 {[%clk 0:00:03.4]} 103... b5 {[%clk 0:00:02.1]} 104. Qe1
{[%clk 0:00:04.3]} 104... Ke3 {[%clk 0:00:02.4]} 105. Kc5 {[%clk 0:00:04.5]}
105... Kd3 {[%clk 0:00:02.8]} 106. Kb4 {[%clk 0:00:05.4]} 1-0

[Event "*** SCC Grand Prix: Titled Tuesday Blitz"]
[Site "Chess.com"]
[Date "2020.07.21"]
[Round "9"]
[White "Fh2411"]
[Black "KobyKalavannan"]
[Result "0-1"]
[WhiteElo "2577"]
[BlackElo "2714"]
[TimeControl "180+1"]
[EndTime "11:52:16 PDT"]
[Termination "KobyKalavannan won on time"]

1. d4 {[%clk 0:03:00.9]} 1... Nf6 {[%clk 0:02:59.3]} 2. Nf3 {[%clk 0:03:01.4]}
2... g6 {[%clk 0:02:59.6]} 3. g3 {[%clk 0:03:00.5]} 3... Bg7 {[%clk 0:03:00]} 4.
Bg2 {[%clk 0:03:01.4]} 4... O-O {[%clk 0:03:00.6]} 5. O-O {[%clk 0:03:02.3]}
5... d5 {[%clk 0:03:00.3]} 6. c3 {[%clk 0:03:01.6]} 6... b6 {[%clk 0:02:58.2]}
7. Nbd2 {[%clk 0:03:00.3]} 7... Bb7 {[%clk 0:02:58.6]} 8. Ne5 {[%clk 0:02:59.6]}
8... Nbd7 {[%clk 0:02:58.5]} 9. Ndf3 {[%clk 0:03:00.2]} 9... c5 {[%clk
0:02:57.2]} 10. Bf4 {[%clk 0:02:59.4]} 10... Rc8 {[%clk 0:02:56.7]} 11. Re1
{[%clk 0:02:51]} 11... Nh5 {[%clk 0:02:29.9]} 12. Qd2 {[%clk 0:02:31.4]} 12...
Nxf4 {[%clk 0:02:29.2]} 13. gxf4 {[%clk 0:02:32.1]} 13... Nf6 {[%clk 0:02:27.1]}
14. Ng5 {[%clk 0:02:25.3]} 14... h6 {[%clk 0:02:16.9]} 15. Ngf3 {[%clk
0:02:03.8]} 15... Ne4 {[%clk 0:02:16.3]} 16. Qd1 {[%clk 0:02:03.4]} 16... e6
{[%clk 0:02:11.7]} 17. e3 {[%clk 0:02:03.5]} 17... Qe8 {[%clk 0:02:05.5]} 18.
Nd2 {[%clk 0:02:00.8]} 18... f6 {[%clk 0:01:58.3]} 19. Nxe4 {[%clk 0:01:55.8]}
19... dxe4 {[%clk 0:01:58.8]} 20. Nc4 {[%clk 0:01:54.1]} 20... Rd8 {[%clk
0:01:57.9]} 21. Nd2 {[%clk 0:01:41.9]} 21... e5 {[%clk 0:01:53.3]} 22. fxe5
{[%clk 0:01:24.5]} 22... fxe5 {[%clk 0:01:52]} 23. dxc5 {[%clk 0:01:22.3]} 23...
Qf7 {[%clk 0:01:40.7]} 24. Re2 {[%clk 0:01:21.5]} 24... Ba6 {[%clk 0:01:33.4]}
25. c6 {[%clk 0:01:08.5]} 25... Bxe2 {[%clk 0:01:20.4]} 26. Qxe2 {[%clk
0:01:09.4]} 26... Qd5 {[%clk 0:01:20.7]} 27. c7 {[%clk 0:00:52.3]} 27... Rd7
{[%clk 0:01:18.3]} 28. Nxe4 {[%clk 0:00:51]} 28... Qf7 {[%clk 0:01:16.7]} 29.
Rd1 {[%clk 0:00:33.7]} 29... Rxd1+ {[%clk 0:01:10.1]} 30. Qxd1 {[%clk
0:00:34.6]} 30... Qxc7 {[%clk 0:01:10.7]} 31. h3 {[%clk 0:00:28.4]} 31... Rd8
{[%clk 0:01:10.2]} 32. Qb3+ {[%clk 0:00:28.1]} 32... Qf7 {[%clk 0:01:09.1]} 33.
Qa4 {[%clk 0:00:26.5]} 33... Qd7 {[%clk 0:01:02.9]} 34. Qb3+ {[%clk 0:00:25.8]}
34... Kh7 {[%clk 0:01:02.9]} 35. Kh2 {[%clk 0:00:23]} 35... Qe7 {[%clk
0:00:56.1]} 36. Qc4 {[%clk 0:00:20.6]} 36... Rd7 {[%clk 0:00:49]} 37. a4 {[%clk
0:00:20.6]} 37... Qf7 {[%clk 0:00:47.8]} 38. Qb5 {[%clk 0:00:20.6]} 38... Kh8
{[%clk 0:00:37.3]} 39. Qc6 {[%clk 0:00:20.6]} 39... Re7 {[%clk 0:00:33.6]} 40.
Qc8+ {[%clk 0:00:17.1]} 40... Qe8 {[%clk 0:00:31.6]} 41. Qg4 {[%clk 0:00:17.5]}
41... Kh7 {[%clk 0:00:27.7]} 42. Qd1 {[%clk 0:00:17.8]} 42... Rd7 {[%clk
0:00:26.8]} 43. Qb3 {[%clk 0:00:17.8]} 43... Qf7 {[%clk 0:00:26.4]} 44. Qb5
{[%clk 0:00:18.2]} 44... Qe7 {[%clk 0:00:21.6]} 45. Qc6 {[%clk 0:00:18.3]} 45...
Rc7 {[%clk 0:00:20.1]} 46. Qd5 {[%clk 0:00:18.1]} 46... h5 {[%clk 0:00:18.2]}
47. Qb5 {[%clk 0:00:15.8]} 47... Bf6 {[%clk 0:00:17.3]} 48. Qd5 {[%clk
0:00:15.1]} 48... Bh4 {[%clk 0:00:17]} 49. Qa8 {[%clk 0:00:13.2]} 49... Rd7
{[%clk 0:00:15.6]} 50. Qc8 {[%clk 0:00:10.5]} 50... Rd8 {[%clk 0:00:15.4]} 51.
Qc6 {[%clk 0:00:10.3]} 51... Rf8 {[%clk 0:00:15.3]} 52. f3 {[%clk 0:00:06]}
52... Bg5 {[%clk 0:00:12.4]} 53. Qd5 {[%clk 0:00:04.8]} 53... Bh6 {[%clk
0:00:12]} 54. Qd3 {[%clk 0:00:05.1]} 54... Rd8 {[%clk 0:00:11.4]} 55. Qe2 {[%clk
0:00:05.7]} 55... Bg7 {[%clk 0:00:11.1]} 56. Kg3 {[%clk 0:00:04.7]} 56... h4+
{[%clk 0:00:10.7]} 57. Kh2 {[%clk 0:00:04.4]} 57... Qd7 {[%clk 0:00:11.4]} 58.
Qe1 {[%clk 0:00:04.2]} 58... Qe7 {[%clk 0:00:10.1]} 59. Qe2 {[%clk 0:00:04.7]}
59... Bh6 {[%clk 0:00:10.3]} 60. Qe1 {[%clk 0:00:04.8]} 60... Rf8 {[%clk
0:00:09.8]} 61. Qe2 {[%clk 0:00:05.1]} 61... Rf5 {[%clk 0:00:07.1]} 62. Qe1
{[%clk 0:00:05.3]} 62... Bg7 {[%clk 0:00:06.8]} 63. Qf2 {[%clk 0:00:04.6]} 63...
Rh5 {[%clk 0:00:06.7]} 64. Qe1 {[%clk 0:00:04.8]} 64... Qd7 {[%clk 0:00:06]} 65.
Qe2 {[%clk 0:00:05]} 65... Qxa4 {[%clk 0:00:06.2]} 66. Nd6 {[%clk 0:00:04.7]}
66... Qd7 {[%clk 0:00:05.8]} 67. Ne4 {[%clk 0:00:05]} 67... Qe7 {[%clk
0:00:05.5]} 68. Qc4 {[%clk 0:00:04.9]} 68... Rf5 {[%clk 0:00:05]} 69. Qe2 {[%clk
0:00:04.9]} 69... Rf8 {[%clk 0:00:05.2]} 70. Bf1 {[%clk 0:00:05]} 70... Rd8
{[%clk 0:00:05.8]} 71. Qg2 {[%clk 0:00:05.3]} 71... Bh6 {[%clk 0:00:05.4]} 72.
Qf2 {[%clk 0:00:02.2]} 72... Rd7 {[%clk 0:00:04]} 73. Bc4 {[%clk 0:00:02.7]}
73... Rc7 {[%clk 0:00:04]} 74. Bd5 {[%clk 0:00:02.8]} 74... a5 {[%clk
0:00:04.5]} 75. c4 {[%clk 0:00:03.3]} 75... b5 {[%clk 0:00:04.2]} 76. b3 {[%clk
0:00:03.1]} 76... bxc4 {[%clk 0:00:04.4]} 77. bxc4 {[%clk 0:00:04]} 77... a4
{[%clk 0:00:05]} 78. Nc3 {[%clk 0:00:03.4]} 78... a3 {[%clk 0:00:04.5]} 79. Qa2
{[%clk 0:00:02.5]} 79... Qb4 {[%clk 0:00:04.5]} 80. Nb5 {[%clk 0:00:02.2]} 80...
Qb2+ {[%clk 0:00:04.3]} 81. Qxb2 {[%clk 0:00:02.5]} 81... axb2 {[%clk
0:00:05.2]} 82. Nc3 {[%clk 0:00:01.3]} 82... Ra7 {[%clk 0:00:03.7]} 83. Nb1
{[%clk 0:00:01.2]} 83... Bxe3 {[%clk 0:00:03.8]} 84. Be4 {[%clk 0:00:02.1]}
84... Bd4 {[%clk 0:00:04.3]} 85. Kg2 {[%clk 0:00:03]} 85... Ra4 {[%clk
0:00:03.4]} 86. Bd5 {[%clk 0:00:03.4]} 86... Ra5 {[%clk 0:00:03.8]} 87. Be4
{[%clk 0:00:03.5]} 87... Kg7 {[%clk 0:00:03.4]} 88. Kf1 {[%clk 0:00:03.2]} 88...
g5 {[%clk 0:00:03.9]} 89. Ke2 {[%clk 0:00:03.5]} 89... Kf6 {[%clk 0:00:04.8]}
90. Kd3 {[%clk 0:00:03.8]} 90... Ke7 {[%clk 0:00:05.4]} 91. Bd5 {[%clk
0:00:04.1]} 91... Kd6 {[%clk 0:00:05.8]} 92. Be4 {[%clk 0:00:04.4]} 92... Kc5
{[%clk 0:00:06.3]} 93. Bd5 {[%clk 0:00:05]} 93... Ra1 {[%clk 0:00:06.6]} 94. Kc2
{[%clk 0:00:04.4]} 94... Ra4 {[%clk 0:00:06]} 95. Kb3 {[%clk 0:00:03.9]} 95...
Rb4+ {[%clk 0:00:05.2]} 96. Kc2 {[%clk 0:00:04.4]} 96... Rb6 {[%clk 0:00:05.3]}
97. Kd3 {[%clk 0:00:04.3]} 97... Ra6 {[%clk 0:00:04.3]} 98. Kc2 {[%clk 0:00:04]}
98... Kb4 {[%clk 0:00:04.7]} 99. Kd3 {[%clk 0:00:03.2]} 99... Ra5 {[%clk
0:00:04.1]} 100. Kc2 {[%clk 0:00:03.2]} 100... Rc5 {[%clk 0:00:04.6]} 101. Kd3
{[%clk 0:00:03.3]} 101... Kb3 {[%clk 0:00:04.8]} 102. Nd2+ {[%clk 0:00:03.2]}
102... Ka2 {[%clk 0:00:04.7]} 103. Kc2 {[%clk 0:00:03.8]} 103... Rc7 {[%clk
0:00:02.5]} 104. Nb1 {[%clk 0:00:03.7]} 104... Ka1 {[%clk 0:00:02.1]} 105. Nd2
{[%clk 0:00:03.4]} 105... Rc5 {[%clk 0:00:02]} 106. Nb3+ {[%clk 0:00:03.2]}
106... Ka2 {[%clk 0:00:01.8]} 107. Nd2 {[%clk 0:00:03.9]} 107... Ka3 {[%clk
0:00:01.8]} 108. Nb1+ {[%clk 0:00:04.1]} 108... Kb4 {[%clk 0:00:02.7]} 109. Kd3
{[%clk 0:00:04.6]} 109... Rc8 {[%clk 0:00:03.5]} 110. Nd2 {[%clk 0:00:02.7]}
110... Rd8 {[%clk 0:00:04.1]} 111. Nb1 {[%clk 0:00:02.7]} 111... Kc5 {[%clk
0:00:04.5]} 112. Ke4 {[%clk 0:00:02.6]} 112... Rb8 {[%clk 0:00:04.3]} 113. Kd3
{[%clk 0:00:03]} 113... Rb4 {[%clk 0:00:04.3]} 114. Kc2 {[%clk 0:00:01.5]}
114... Rxc4+ {[%clk 0:00:04.8]} 115. Bxc4 {[%clk 0:00:02.4]} 115... Kxc4 {[%clk
0:00:05.7]} 116. Nd2+ {[%clk 0:00:02.9]} 116... Kd5 {[%clk 0:00:06.3]} 117. Ne4
{[%clk 0:00:03.2]} 117... Be3 {[%clk 0:00:05.2]} 118. Kxb2 {[%clk 0:00:03.1]}
118... Kd4 {[%clk 0:00:05.7]} 119. Kc2 {[%clk 0:00:03.5]} 119... Bf4 {[%clk
0:00:06.3]} 0-1

[Event "*** SCC Grand Prix: Titled Tuesday Blitz"]
[Site "Chess.com"]
[Date "2020.07.21"]
[Round "10"]
[White "Undisputed92"]
[Black "sergiochess83"]
[Result "1/2-1/2"]
[WhiteElo "2654"]
[BlackElo "2828"]
[TimeControl "180+1"]
[EndTime "11:53:50 PDT"]
[Termination "Game drawn by repetition"]

1. e4 {[%clk 0:03:00.9]} 1... c6 {[%clk 0:02:59.4]} 2. c4 {[%clk 0:03:00.1]}
2... d5 {[%clk 0:03:00.3]} 3. exd5 {[%clk 0:03:00.1]} 3... cxd5 {[%clk
0:03:01.2]} 4. cxd5 {[%clk 0:03:00.6]} 4... Nf6 {[%clk 0:03:02.1]} 5. Nc3 {[%clk
0:03:00.9]} 5... Nxd5 {[%clk 0:03:01.1]} 6. Nf3 {[%clk 0:03:01.5]} 6... Nc6
{[%clk 0:03:00.7]} 7. Bb5 {[%clk 0:03:01]} 7... g6 {[%clk 0:02:45.2]} 8. Qa4
{[%clk 0:02:57.9]} 8... Nb6 {[%clk 0:02:38]} 9. Bxc6+ {[%clk 0:02:57.3]} 9...
bxc6 {[%clk 0:02:36.3]} 10. Qxc6+ {[%clk 0:02:58.2]} 10... Bd7 {[%clk
0:02:36.6]} 11. Qe4 {[%clk 0:02:58.1]} 11... Bg7 {[%clk 0:02:33.8]} 12. O-O
{[%clk 0:02:57.1]} 12... Bf5 {[%clk 0:02:33.8]} 13. Qc6+ {[%clk 0:02:55.9]}
13... Bd7 {[%clk 0:02:33.8]} 14. Qe4 {[%clk 0:02:55.8]} 14... Bf5 {[%clk
0:02:33.9]} 15. Qc6+ {[%clk 0:02:55.7]} 15... Bd7 {[%clk 0:02:33.9]} 16. Qe4
{[%clk 0:02:55.7]} 1/2-1/2

[Event "*** SCC Grand Prix: Titled Tuesday Blitz"]
[Site "Chess.com"]
[Date "2020.07.21"]
[Round "10"]
[White "Klaus1995"]
[Black "Azoulas1"]
[Result "0-1"]
[WhiteElo "1887"]
[BlackElo "1990"]
[TimeControl "180+1"]
[EndTime "11:53:55 PDT"]
[Termination "Azoulas1 won by resignation"]

1. e4 {[%clk 0:03:00.9]} 1... c5 {[%clk 0:02:59.6]} 2. Nf3 {[%clk 0:03:00.2]}
2... e6 {[%clk 0:02:59.5]} 3. d4 {[%clk 0:03:00.8]} 3... cxd4 {[%clk 0:02:58.7]}
4. Nxd4 {[%clk 0:03:01.7]} 4... Nf6 {[%clk 0:02:58.6]} 5. Nc3 {[%clk 0:02:56.1]}
5... Bb4 {[%clk 0:02:57.1]} 6. e5 {[%clk 0:02:54.4]} 6... Nd5 {[%clk 0:02:55.6]}
7. Bd2 {[%clk 0:02:53.3]} 7... Nxc3 {[%clk 0:02:54.1]} 8. bxc3 {[%clk
0:02:53.5]} 8... Be7 {[%clk 0:02:53.6]} 9. Bd3 {[%clk 0:02:52.5]} 9... Nc6
{[%clk 0:02:50.4]} 10. Qe2 {[%clk 0:02:43.4]} 10... Qc7 {[%clk 0:02:43.6]} 11.
Nb5 {[%clk 0:02:43.2]} 11... Qb8 {[%clk 0:02:43.2]} 12. f4 {[%clk 0:02:43]}
12... a6 {[%clk 0:02:42.5]} 13. Na3 {[%clk 0:02:43.1]} 13... Bxa3 {[%clk
0:02:39.2]} 0-1

[Event "*** SCC Grand Prix: Titled Tuesday Blitz"]
[Site "Chess.com"]
[Date "2020.07.21"]
[Round "10"]
[White "FMOlexandrProhorov"]
[Black "pedro_nascimento85"]
[Result "0-1"]
[WhiteElo "2086"]
[BlackElo "1926"]
[TimeControl "180+1"]
[EndTime "11:54:29 PDT"]
[Termination "pedro_nascimento85 won by resignation"]

1. Nf3 {[%clk 0:03:00.9]} 1... d5 {[%clk 0:02:54.4]} 2. d4 {[%clk 0:03:00.9]}
2... Nf6 {[%clk 0:02:49.2]} 3. c4 {[%clk 0:03:01.8]} 3... e6 {[%clk 0:02:48.5]}
4. Nc3 {[%clk 0:03:02.7]} 4... Be7 {[%clk 0:02:48.4]} 5. e3 {[%clk 0:03:03.6]}
5... O-O {[%clk 0:02:48]} 6. Qc2 {[%clk 0:03:04.5]} 6... b6 {[%clk 0:02:47.6]}
7. Bd3 {[%clk 0:03:03.9]} 7... dxc4 {[%clk 0:02:46.1]} 8. Bxc4 {[%clk
0:03:04.2]} 8... Ba6 {[%clk 0:02:46.5]} 9. Bxa6 {[%clk 0:03:01.5]} 9... Nxa6
{[%clk 0:02:46.9]} 10. O-O {[%clk 0:03:02.3]} 10... c5 {[%clk 0:02:46.1]} 11.
Rd1 {[%clk 0:02:59.3]} 11... Qc8 {[%clk 0:02:44.8]} 12. Ne4 {[%clk 0:02:56.3]}
12... Nb4 {[%clk 0:02:38.4]} 13. Qb1 {[%clk 0:02:55]} 13... cxd4 {[%clk
0:02:29.6]} 14. a3 {[%clk 0:02:44.5]} 14... Nc2 {[%clk 0:02:19.9]} 15. Ra2
{[%clk 0:02:32]} 15... Nxe4 {[%clk 0:02:18.3]} 0-1

[Event "*** SCC Grand Prix: Titled Tuesday Blitz"]
[Site "Chess.com"]
[Date "2020.07.21"]
[Round "10"]
[White "jonychess03"]
[Black "RenarddesSurfaces"]
[Result "0-1"]
[WhiteElo "2308"]
[BlackElo "2418"]
[TimeControl "180+1"]
[EndTime "11:54:43 PDT"]
[Termination "RenarddesSurfaces won by resignation"]

1. c4 {[%clk 0:03:00.9]} 1... e5 {[%clk 0:02:58.9]} 2. Nc3 {[%clk 0:03:01.4]}
2... Nf6 {[%clk 0:02:58.7]} 3. g3 {[%clk 0:03:01.8]} 3... c6 {[%clk 0:02:59.3]}
4. d4 {[%clk 0:03:00.7]} 4... exd4 {[%clk 0:02:59]} 5. Qxd4 {[%clk 0:03:01.6]}
5... d5 {[%clk 0:02:59.7]} 6. cxd5 {[%clk 0:02:57.3]} 6... cxd5 {[%clk
0:03:00.6]} 7. Bg2 {[%clk 0:02:57.3]} 7... Nc6 {[%clk 0:03:01]} 8. Qd1 {[%clk
0:02:55.4]} 8... d4 {[%clk 0:03:01.1]} 9. Ne4 {[%clk 0:02:54.1]} 9... Bb4+
{[%clk 0:02:51.4]} 10. Bd2 {[%clk 0:02:53.6]} 10... Bxd2+ {[%clk 0:02:51.3]} 11.
Qxd2 {[%clk 0:02:54.5]} 11... Nxe4 {[%clk 0:02:48.9]} 12. Bxe4 {[%clk
0:02:54.2]} 12... O-O {[%clk 0:02:48.7]} 13. a3 {[%clk 0:02:27.2]} 13... Re8
{[%clk 0:02:48]} 14. Bd3 {[%clk 0:02:21.8]} 14... Qd5 {[%clk 0:02:44.4]} 15. Nf3
{[%clk 0:02:21.6]} 15... Qxf3 {[%clk 0:02:44]} 16. O-O {[%clk 0:02:16.9]} 16...
Qf6 {[%clk 0:02:39.6]} 17. Rfd1 {[%clk 0:02:13.5]} 17... Bf5 {[%clk 0:02:37.1]}
18. Qf4 {[%clk 0:02:10.5]} 18... Bxd3 {[%clk 0:02:35.5]} 19. Qxf6 {[%clk
0:02:11.4]} 19... gxf6 {[%clk 0:02:35.1]} 20. Rxd3 {[%clk 0:02:12.3]} 20... Rxe2
{[%clk 0:02:34.5]} 21. Rb3 {[%clk 0:02:11.2]} 0-1

[Event "*** SCC Grand Prix: Titled Tuesday Blitz"]
[Site "Chess.com"]
[Date "2020.07.21"]
[Round "10"]
[White "ShadowJolteon"]
[Black "Zarinur"]
[Result "1-0"]
[WhiteElo "2340"]
[BlackElo "2097"]
[TimeControl "180+1"]
[EndTime "11:54:48 PDT"]
[Termination "ShadowJolteon won by checkmate"]

1. d4 {[%clk 0:02:55.5]} 1... Nf6 {[%clk 0:02:59.4]} 2. c4 {[%clk 0:02:53.7]}
2... e6 {[%clk 0:02:59.1]} 3. g3 {[%clk 0:02:53.3]} 3... d5 {[%clk 0:02:57.3]}
4. Nf3 {[%clk 0:02:53]} 4... dxc4 {[%clk 0:02:49.9]} 5. Bg2 {[%clk 0:02:49.6]}
5... Bd7 {[%clk 0:02:47.6]} 6. O-O {[%clk 0:02:44.7]} 6... Bc6 {[%clk
0:02:46.2]} 7. Nc3 {[%clk 0:02:44.7]} 7... Be7 {[%clk 0:02:45.1]} 8. Qc2 {[%clk
0:02:44.5]} 8... O-O {[%clk 0:02:43.9]} 9. Rd1 {[%clk 0:02:39.7]} 9... Nbd7
{[%clk 0:02:41.9]} 10. e4 {[%clk 0:02:38.9]} 10... b6 {[%clk 0:02:24.5]} 11. d5
{[%clk 0:02:34.3]} 11... exd5 {[%clk 0:02:23.1]} 12. e5 {[%clk 0:02:34.4]} 12...
Ne4 {[%clk 0:02:17]} 13. Nxd5 {[%clk 0:02:33.7]} 13... Nec5 {[%clk 0:02:00.2]}
14. Nxe7+ {[%clk 0:02:31.6]} 14... Qxe7 {[%clk 0:02:01.1]} 15. Ng5 {[%clk
0:02:31.3]} 15... Bxg2 {[%clk 0:01:59.1]} 16. Qxh7# {[%clk 0:02:30]} 1-0